[Event "Titled Tuesday Blitz August 02 Late 2022"]
[White "Espinosa Veloz, Ermes"]
[Black "Wachinger, Nikolas"]
[WhiteFideId "3507424"]
[BlackFideId "12962791"]
[WhiteElo "2333"]
[BlackElo "2253"]
[Result "1-0"]
[Round "08"]
[TimeControl "180+1"]
[Date "2022.08.02"]
[WhiteClock "0:00:09"]
[BlackClock "0:00:10"]

1. d4 {[%clk 0:03:00]}  Nf6 {[%clk 0:02:59]} 2. c4 {[%clk 0:02:42]}  g6 {[%clk 0:03:00]} 3. g3 {[%clk 0:02:40]}  Bg7 {[%clk 0:02:58]} 4. Bg2 {[%clk 0:02:40]}  O-O {[%clk 0:02:58]} 5. Nf3 {[%clk 0:02:41]}  b6 {[%clk 0:02:59]} 6. Nc3 {[%clk 0:02:38]}  Bb7 {[%clk 0:02:59]} 7. O-O {[%clk 0:02:39]}  Ne4 {[%clk 0:02:59]} 8. Bd2 {[%clk 0:02:35]}  Nxd2 {[%clk 0:02:53]} 9. Qxd2 {[%clk 0:02:35]}  c5 {[%clk 0:02:53]} 10. d5 {[%clk 0:02:33]}  d6 {[%clk 0:02:52]} 11. e4 {[%clk 0:02:32]}  Nd7 {[%clk 0:02:51]} 12. Ne1 {[%clk 0:02:26]}  Ba6 {[%clk 0:02:45]} 13. b3 {[%clk 0:02:08]}  b5 {[%clk 0:02:44]} 14. Nc2 {[%clk 0:01:46]}  Qa5 {[%clk 0:02:27]} 15. b4 {[%clk 0:01:42]}  cxb4 {[%clk 0:02:24]} 16. Nxb5 {[%clk 0:01:41]}  Bxb5 {[%clk 0:02:24]} 17. cxb5 {[%clk 0:01:41]}  Bxa1 {[%clk 0:02:23]} 18. Rxa1 {[%clk 0:01:40]}  Qxb5 {[%clk 0:02:20]} 19. Nd4 {[%clk 0:01:40]}  Qb6 {[%clk 0:02:12]} 20. Nc6 {[%clk 0:01:40]}  Rfe8 {[%clk 0:01:52]} 21. Qg5 {[%clk 0:01:22]}  Nf6 {[%clk 0:01:19]} 22. e5 {[%clk 0:01:16]}  Nd7 {[%clk 0:00:51]} 23. e6 {[%clk 0:00:44]}  Nf6 {[%clk 0:00:48]} 24. Nxe7+ {[%clk 0:00:16]}  Rxe7 {[%clk 0:00:46]} 25. Qxf6 {[%clk 0:00:16]}  Rae8 {[%clk 0:00:41]} 26. Bh3 {[%clk 0:00:16]}  Qc5 {[%clk 0:00:33]} 27. Re1 {[%clk 0:00:15]}  Rf8 {[%clk 0:00:18]} 28. Qxe7 {[%clk 0:00:13]}  Qc3 {[%clk 0:00:15]} 29. Re3 {[%clk 0:00:12]}  Qc1+ {[%clk 0:00:12]} 30. Kg2 {[%clk 0:00:12]}  Qd1 {[%clk 0:00:12]} 31. exf7+ {[%clk 0:00:12]}  Kg7 {[%clk 0:00:12]} 32. Be6 {[%clk 0:00:10]}  Qd4 {[%clk 0:00:10]} 33. Qh4 {[%clk 0:00:10]}  h5 {[%clk 0:00:10]} 34. Qxd4+ {[%clk 0:00:09]}  Kh7 {[%clk 0:00:11]} 35. Qf6 {[%clk 0:00:10]}  h4 {[%clk 0:00:10]} 36. Bf5 {[%clk 0:00:10]}  gxf5 {[%clk 0:00:10]} 37. Qxf5+ {[%clk 0:00:11]}  Kg7 {[%clk 0:00:10]} 38. Re6 {[%clk 0:00:11]}  h3+ {[%clk 0:00:10]} 39. Kxh3 {[%clk 0:00:09]}  b3 {[%clk 0:00:11]} 40. Rg6+ {[%clk 0:00:08]}  Kh8 {[%clk 0:00:10]} 41. Qh5# {[%clk 0:00:09]} 1-0


[Site "https://www.chess.com"]

[Event "Titled Tuesday Blitz August 02 Late 2022"]
[White "Golubev, Mikhail"]
[Black "Tanenbaum, Zachary"]
[WhiteFideId "14100983"]
[BlackFideId "2060850"]
[WhiteElo "2374"]
[BlackElo "2175"]
[Result "0-1"]
[Round "08"]
[TimeControl "180+1"]
[Date "2022.08.02"]
[WhiteClock "0:00:02"]
[BlackClock "0:00:57"]

1. e4 {[%clk 0:03:00]}  e5 {[%clk 0:03:00]} 2. Nf3 {[%clk 0:02:59]}  Nc6 {[%clk 0:03:00]} 3. Bb5 {[%clk 0:02:59]}  a6 {[%clk 0:03:01]} 4. Ba4 {[%clk 0:02:58]}  d6 {[%clk 0:03:01]} 5. O-O {[%clk 0:02:56]}  Nf6 {[%clk 0:03:01]} 6. Re1 {[%clk 0:02:54]}  Be7 {[%clk 0:03:01]} 7. c3 {[%clk 0:02:48]}  O-O {[%clk 0:03:01]} 8. h3 {[%clk 0:02:47]}  b5 {[%clk 0:03:01]} 9. Bc2 {[%clk 0:02:46]}  Nb8 {[%clk 0:03:00]} 10. a4 {[%clk 0:02:43]}  Bb7 {[%clk 0:03:00]} 11. axb5 {[%clk 0:02:32]}  axb5 {[%clk 0:03:01]} 12. Rxa8 {[%clk 0:02:32]}  Bxa8 {[%clk 0:03:02]} 13. d4 {[%clk 0:02:30]}  Nbd7 {[%clk 0:03:02]} 14. b4 {[%clk 0:02:13]}  Re8 {[%clk 0:03:00]} 15. d5 {[%clk 0:02:11]}  c6 {[%clk 0:02:57]} 16. dxc6 {[%clk 0:02:05]}  Bxc6 {[%clk 0:02:58]} 17. Na3 {[%clk 0:01:51]}  Bf8 {[%clk 0:02:52]} 18. Bd3 {[%clk 0:01:48]}  Qb6 {[%clk 0:02:51]} 19. Qe2 {[%clk 0:01:35]}  Rb8 {[%clk 0:02:49]} 20. Nc2 {[%clk 0:01:28]}  Qb7 {[%clk 0:02:46]} 21. Bg5 {[%clk 0:01:11]}  h6 {[%clk 0:02:45]} 22. Bxf6 {[%clk 0:01:02]}  Nxf6 {[%clk 0:02:45]} 23. Nd2 {[%clk 0:00:58]}  Qb6 {[%clk 0:02:40]} 24. Ne3 {[%clk 0:00:53]}  g6 {[%clk 0:02:32]} 25. Qf3 {[%clk 0:00:50]}  Nh5 {[%clk 0:02:26]} 26. g3 {[%clk 0:00:47]}  Bd7 {[%clk 0:02:16]} 27. Nd5 {[%clk 0:00:43]}  Qb7 {[%clk 0:02:13]} 28. g4 {[%clk 0:00:39]}  Ng7 {[%clk 0:01:54]} 29. Nf6+ {[%clk 0:00:31]}  Kh8 {[%clk 0:01:54]} 30. Nxd7 {[%clk 0:00:22]}  Qxd7 {[%clk 0:01:53]} 31. Nf1 {[%clk 0:00:19]}  Ne6 {[%clk 0:01:44]} 32. Ne3 {[%clk 0:00:19]}  Nf4 {[%clk 0:01:42]} 33. Nd5 {[%clk 0:00:18]}  Nxd5 {[%clk 0:01:37]} 34. exd5 {[%clk 0:00:19]}  Bg7 {[%clk 0:01:32]} 35. Ra1 {[%clk 0:00:13]}  Rc8 {[%clk 0:01:26]} 36. Qe2 {[%clk 0:00:12]}  Rxc3 {[%clk 0:01:24]} 37. Bxb5 {[%clk 0:00:12]}  Qe7 {[%clk 0:01:18]} 38. Bc6 {[%clk 0:00:12]}  Rxh3 {[%clk 0:01:16]} 39. Kg2 {[%clk 0:00:05]}  Qh4 {[%clk 0:01:14]} 40. Rg1 {[%clk 0:00:06]}  Rh2+ {[%clk 0:01:07]} 41. Kf1 {[%clk 0:00:05]}  e4 {[%clk 0:01:06]} 42. Ke1 {[%clk 0:00:02]}  Bc3+ {[%clk 0:01:04]} 43. Kd1 {[%clk 0:00:02]}  Rxf2 {[%clk 0:01:00]} 44. Qxe4 {[%clk 0:00:02]}  Qh2 {[%clk 0:00:57]} 0-1


[Site "https://www.chess.com"]

[Event "Titled Tuesday Blitz August 02 Late 2022"]
[White "Grischuk, Alexander"]
[Black "Lobanov, Sergei"]
[WhiteFideId "4126025"]
[BlackFideId "24183750"]
[WhiteElo "2762"]
[BlackElo "2524"]
[Result "1-0"]
[Round "08"]
[TimeControl "180+1"]
[Date "2022.08.02"]
[WhiteClock "0:00:27"]
[BlackClock "0:00:08"]

1. d4 {[%clk 0:03:00]}  Nf6 {[%clk 0:02:59]} 2. c4 {[%clk 0:03:01]}  e6 {[%clk 0:02:59]} 3. Nc3 {[%clk 0:03:01]}  Bb4 {[%clk 0:02:59]} 4. e3 {[%clk 0:03:01]}  O-O {[%clk 0:02:58]} 5. Bd3 {[%clk 0:03:02]}  d5 {[%clk 0:02:57]} 6. a3 {[%clk 0:03:02]}  Bxc3+ {[%clk 0:02:57]} 7. bxc3 {[%clk 0:03:03]}  dxc4 {[%clk 0:02:58]} 8. Bxc4 {[%clk 0:03:04]}  c5 {[%clk 0:02:58]} 9. Ne2 {[%clk 0:03:04]}  Qc7 {[%clk 0:02:58]} 10. Bd3 {[%clk 0:03:05]}  Nc6 {[%clk 0:02:53]} 11. f4 {[%clk 0:03:05]}  b6 {[%clk 0:02:49]} 12. O-O {[%clk 0:03:05]}  Bb7 {[%clk 0:02:49]} 13. Ng3 {[%clk 0:02:53]}  Rad8 {[%clk 0:02:39]} 14. Bb2 {[%clk 0:02:52]}  Qd7 {[%clk 0:02:13]} 15. Qe2 {[%clk 0:02:44]}  cxd4 {[%clk 0:01:36]} 16. cxd4 {[%clk 0:02:43]}  Nd5 {[%clk 0:01:36]} 17. f5 {[%clk 0:02:02]}  exf5 {[%clk 0:01:09]} 18. Bxf5 {[%clk 0:01:50]}  Qe7 {[%clk 0:00:57]} 19. e4 {[%clk 0:01:45]}  Nc7 {[%clk 0:00:56]} 20. Bxh7+ {[%clk 0:00:42]}  Kxh7 {[%clk 0:00:53]} 21. Qh5+ {[%clk 0:00:43]}  Kg8 {[%clk 0:00:51]} 22. Nf5 {[%clk 0:00:44]}  Qxe4 {[%clk 0:00:18]} 23. Rae1 {[%clk 0:00:42]}  Qd5 {[%clk 0:00:19]} 24. Qg5 {[%clk 0:00:34]}  g6 {[%clk 0:00:16]} 25. Qf6 {[%clk 0:00:31]}  gxf5 {[%clk 0:00:12]} 26. Qg5+ {[%clk 0:00:26]}  Kh7 {[%clk 0:00:08]} 27. Re3 {[%clk 0:00:27]} 1-0


[Site "https://www.chess.com"]

[Event "Titled Tuesday Blitz August 02 Late 2022"]
[White "Maksimovic, Bojan"]
[Black "Fromm, Marius"]
[WhiteFideId "14408120"]
[BlackFideId "12993190"]
[WhiteElo "2453"]
[BlackElo "2274"]
[Result "1-0"]
[Round "08"]
[TimeControl "180+1"]
[Date "2022.08.02"]
[WhiteClock "0:02:30"]
[BlackClock "0:01:01"]

1. e4 {[%clk 0:03:00]}  c5 {[%clk 0:03:00]} 2. Nf3 {[%clk 0:03:01]}  d6 {[%clk 0:03:00]} 3. Bb5+ {[%clk 0:03:01]}  Bd7 {[%clk 0:03:00]} 4. a4 {[%clk 0:03:01]}  Nf6 {[%clk 0:02:59]} 5. Nc3 {[%clk 0:03:00]}  g6 {[%clk 0:02:57]} 6. O-O {[%clk 0:03:00]}  Bg7 {[%clk 0:02:57]} 7. Re1 {[%clk 0:03:00]}  O-O {[%clk 0:02:56]} 8. d3 {[%clk 0:02:59]}  Nc6 {[%clk 0:02:55]} 9. h3 {[%clk 0:02:51]}  e5 {[%clk 0:02:43]} 10. Bg5 {[%clk 0:02:50]}  h6 {[%clk 0:02:24]} 11. Bxf6 {[%clk 0:02:51]}  Bxf6 {[%clk 0:02:25]} 12. Nd5 {[%clk 0:02:50]}  Bg7 {[%clk 0:02:26]} 13. a5 {[%clk 0:02:50]}  Be6 {[%clk 0:02:21]} 14. a6 {[%clk 0:02:49]}  Ne7 {[%clk 0:01:39]} 15. axb7 {[%clk 0:02:47]}  Rb8 {[%clk 0:01:39]} 16. Nxe7+ {[%clk 0:02:35]}  Qxe7 {[%clk 0:01:40]} 17. Bc6 {[%clk 0:02:35]}  Qc7 {[%clk 0:01:34]} 18. Ra6 {[%clk 0:02:35]}  Rxb7 {[%clk 0:01:27]} 19. Bxb7 {[%clk 0:02:34]}  Qxb7 {[%clk 0:01:28]} 20. Rxd6 {[%clk 0:02:34]}  Qxb2 {[%clk 0:01:28]} 21. Nd2 {[%clk 0:02:33]}  Qb7 {[%clk 0:01:04]} 22. Nc4 {[%clk 0:02:30]}  Rc8 {[%clk 0:01:01]} 23. Rxe6 {[%clk 0:02:30]} 1-0


[Site "https://www.chess.com"]

[Event "Titled Tuesday Blitz August 02 Late 2022"]
[White "Munoz, Francisco Javier"]
[Black "Ernst, Sipke"]
[WhiteFideId "128368"]
[BlackFideId "1004689"]
[WhiteElo "2383"]
[BlackElo "2436"]
[Result "0-1"]
[Round "08"]
[TimeControl "180+1"]
[Date "2022.08.02"]
[WhiteClock "0:00:07"]
[BlackClock "0:00:48"]

1. e4 {[%clk 0:02:56]}  e5 {[%clk 0:02:58]} 2. Nc3 {[%clk 0:02:57]}  Nf6 {[%clk 0:02:58]} 3. Nf3 {[%clk 0:02:58]}  Nc6 {[%clk 0:02:57]} 4. Bb5 {[%clk 0:02:58]}  Bd6 {[%clk 0:02:55]} 5. d3 {[%clk 0:02:58]}  h6 {[%clk 0:02:54]} 6. h3 {[%clk 0:02:58]}  a6 {[%clk 0:02:53]} 7. Bxc6 {[%clk 0:02:58]}  dxc6 {[%clk 0:02:53]} 8. Be3 {[%clk 0:02:59]}  Qe7 {[%clk 0:02:41]} 9. Nd2 {[%clk 0:02:53]}  Be6 {[%clk 0:02:35]} 10. O-O {[%clk 0:02:51]}  O-O-O {[%clk 0:02:28]} 11. f4 {[%clk 0:02:49]}  exf4 {[%clk 0:02:25]} 12. Bxf4 {[%clk 0:02:50]}  Bxf4 {[%clk 0:02:21]} 13. Rxf4 {[%clk 0:02:51]}  g5 {[%clk 0:02:15]} 14. Rf2 {[%clk 0:02:48]}  g4 {[%clk 0:02:13]} 15. Qf1 {[%clk 0:02:41]}  Qc5 {[%clk 0:01:51]} 16. e5 {[%clk 0:01:31]}  g3 {[%clk 0:01:40]} 17. exf6 {[%clk 0:01:29]}  gxf2+ {[%clk 0:01:40]} 18. Qxf2 {[%clk 0:01:30]}  Qxf2+ {[%clk 0:01:39]} 19. Kxf2 {[%clk 0:01:31]}  Rhg8 {[%clk 0:01:38]} 20. Nce4 {[%clk 0:01:20]}  h5 {[%clk 0:01:36]} 21. Re1 {[%clk 0:00:56]}  Rg6 {[%clk 0:01:09]} 22. Nf3 {[%clk 0:00:46]}  Rdg8 {[%clk 0:01:04]} 23. Nh4 {[%clk 0:00:46]}  Rh6 {[%clk 0:01:05]} 24. c4 {[%clk 0:00:43]}  b6 {[%clk 0:01:04]} 25. b3 {[%clk 0:00:41]}  c5 {[%clk 0:01:03]} 26. Ke3 {[%clk 0:00:37]}  Bd7 {[%clk 0:01:02]} 27. Rf1 {[%clk 0:00:28]}  Kb7 {[%clk 0:01:01]} 28. Rf5 {[%clk 0:00:17]}  Bxf5 {[%clk 0:00:58]} 29. Nxf5 {[%clk 0:00:18]}  Rhg6 {[%clk 0:00:57]} 30. g3 {[%clk 0:00:16]}  Re8 {[%clk 0:00:55]} 31. Kf4 {[%clk 0:00:16]}  Re6 {[%clk 0:00:53]} 32. g4 {[%clk 0:00:15]}  hxg4 {[%clk 0:00:52]} 33. hxg4 {[%clk 0:00:16]}  Rexf6 {[%clk 0:00:50]} 34. Nxf6 {[%clk 0:00:16]}  Rxf6 {[%clk 0:00:51]} 35. g5 {[%clk 0:00:15]}  Rg6 {[%clk 0:00:49]} 36. Nh4 {[%clk 0:00:08]}  Rd6 {[%clk 0:00:48]} 37. Ke4 {[%clk 0:00:07]}  Rd4+ {[%clk 0:00:48]} 0-1


[Site "https://www.chess.com"]

[Event "Titled Tuesday Blitz August 02 Late 2022"]
[White "Nazaretyan, Tigran"]
[Black "Izoria, Zviad"]
[WhiteFideId "24162345"]
[BlackFideId "13601733"]
[WhiteElo "2179"]
[BlackElo "2626"]
[Result "0-1"]
[Round "08"]
[TimeControl "180+1"]
[Date "2022.08.02"]
[WhiteClock "0:00:21"]
[BlackClock "0:01:00"]

1. d4 {[%clk 0:03:00]}  d6 {[%clk 0:02:57]} 2. Nf3 {[%clk 0:02:58]}  g6 {[%clk 0:02:54]} 3. c4 {[%clk 0:02:57]}  Bg7 {[%clk 0:02:54]} 4. Nc3 {[%clk 0:02:57]}  Bg4 {[%clk 0:02:51]} 5. e3 {[%clk 0:02:51]}  c5 {[%clk 0:02:51]} 6. Be2 {[%clk 0:02:49]}  cxd4 {[%clk 0:02:50]} 7. exd4 {[%clk 0:02:47]}  Nc6 {[%clk 0:02:49]} 8. Be3 {[%clk 0:02:44]}  Nh6 {[%clk 0:02:48]} 9. d5 {[%clk 0:02:33]}  Bxf3 {[%clk 0:02:47]} 10. Bxf3 {[%clk 0:02:32]}  Ne5 {[%clk 0:02:47]} 11. Be2 {[%clk 0:02:32]}  Nf5 {[%clk 0:02:46]} 12. Bf4 {[%clk 0:02:21]}  Rc8 {[%clk 0:02:38]} 13. Qa4+ {[%clk 0:02:04]}  Qd7 {[%clk 0:02:36]} 14. Qxa7 {[%clk 0:02:03]}  Nxc4 {[%clk 0:02:34]} 15. O-O {[%clk 0:01:51]}  O-O {[%clk 0:02:29]} 16. Bxc4 {[%clk 0:01:48]}  Rxc4 {[%clk 0:02:30]} 17. Bd2 {[%clk 0:01:40]}  Rfc8 {[%clk 0:02:23]} 18. Qb6 {[%clk 0:01:33]}  h5 {[%clk 0:02:15]} 19. Rac1 {[%clk 0:01:28]}  Nh4 {[%clk 0:01:45]} 20. h3 {[%clk 0:01:20]}  Rg4 {[%clk 0:01:31]} 21. hxg4 {[%clk 0:01:09]}  Qxg4 {[%clk 0:01:32]} 22. g3 {[%clk 0:01:09]}  Bd4 {[%clk 0:01:29]} 23. Qxd4 {[%clk 0:00:54]}  Nf3+ {[%clk 0:01:22]} 24. Kg2 {[%clk 0:00:53]}  Nxd4 {[%clk 0:01:22]} 25. Rfe1 {[%clk 0:00:49]}  Qf3+ {[%clk 0:01:17]} 26. Kg1 {[%clk 0:00:48]}  Qf5 {[%clk 0:01:09]} 27. Kg2 {[%clk 0:00:29]}  Qf3+ {[%clk 0:01:09]} 28. Kg1 {[%clk 0:00:29]}  h4 {[%clk 0:01:10]} 29. Re3 {[%clk 0:00:27]}  Qf5 {[%clk 0:01:04]} 30. Kg2 {[%clk 0:00:22]}  h3+ {[%clk 0:01:02]} 31. Kg1 {[%clk 0:00:22]}  Nf3+ {[%clk 0:01:01]} 32. Rxf3 {[%clk 0:00:21]}  Qxf3 {[%clk 0:01:00]} 0-1


[Site "https://www.chess.com"]

[Event "Titled Tuesday Blitz August 02 Late 2022"]
[White "Rasulov, Vugar"]
[Black "Wu, Rochelle"]
[WhiteFideId "13402390"]
[BlackFideId "30908132"]
[WhiteElo "2523"]
[BlackElo "2168"]
[Result "1-0"]
[Round "08"]
[TimeControl "180+1"]
[Date "2022.08.02"]
[WhiteClock "0:02:13"]
[BlackClock "0:00:42"]

1. d4 {[%clk 0:03:00]}  Nf6 {[%clk 0:02:58]} 2. c4 {[%clk 0:03:01]}  g6 {[%clk 0:02:59]} 3. Nc3 {[%clk 0:03:01]}  d5 {[%clk 0:02:57]} 4. cxd5 {[%clk 0:03:01]}  Nxd5 {[%clk 0:02:58]} 5. e4 {[%clk 0:03:01]}  Nxc3 {[%clk 0:02:58]} 6. bxc3 {[%clk 0:03:02]}  Bg7 {[%clk 0:02:59]} 7. Be3 {[%clk 0:03:03]}  c5 {[%clk 0:02:59]} 8. Rc1 {[%clk 0:03:03]}  O-O {[%clk 0:02:59]} 9. Qd2 {[%clk 0:03:02]}  Qa5 {[%clk 0:02:56]} 10. Nf3 {[%clk 0:03:01]}  Rd8 {[%clk 0:02:55]} 11. d5 {[%clk 0:03:01]}  Bg4 {[%clk 0:02:50]} 12. Ng5 {[%clk 0:02:59]}  h6 {[%clk 0:02:34]} 13. h3 {[%clk 0:02:59]}  Bc8 {[%clk 0:02:34]} 14. Nf3 {[%clk 0:02:58]}  Kh7 {[%clk 0:02:35]} 15. h4 {[%clk 0:02:50]}  f5 {[%clk 0:02:14]} 16. Bd3 {[%clk 0:02:42]}  e6 {[%clk 0:02:09]} 17. h5 {[%clk 0:02:39]}  g5 {[%clk 0:02:05]} 18. Nxg5+ {[%clk 0:02:28]}  hxg5 {[%clk 0:02:04]} 19. Bxg5 {[%clk 0:02:29]}  Rf8 {[%clk 0:01:32]} 20. h6 {[%clk 0:02:26]}  Bf6 {[%clk 0:01:31]} 21. Bxf6 {[%clk 0:02:24]}  Rxf6 {[%clk 0:01:32]} 22. Qg5 {[%clk 0:02:23]}  Rf7 {[%clk 0:01:14]} 23. dxe6 {[%clk 0:02:16]}  Bxe6 {[%clk 0:01:13]} 24. exf5 {[%clk 0:02:16]}  Bxa2 {[%clk 0:00:44]} 25. f6+ {[%clk 0:02:15]}  Kh8 {[%clk 0:00:42]} 26. Qg7+ {[%clk 0:02:13]}  Rxg7 {[%clk 0:00:42]} 27. hxg7+ {[%clk 0:02:12]}  Kg8 {[%clk 0:00:42]} 28. Rh8+ {[%clk 0:02:12]}  Kf7 {[%clk 0:00:42]} 29. g8=Q+ {[%clk 0:02:13]} 1-0


[Site "https://www.chess.com"]

[Event "Titled Tuesday Blitz August 02 Late 2022"]
[White "Sarana, Alexey"]
[Black "Babazada, Khazar"]
[WhiteFideId "24133795"]
[BlackFideId "13413554"]
[WhiteElo "2666"]
[BlackElo "2409"]
[Result "1-0"]
[Round "08"]
[TimeControl "180+1"]
[Date "2022.08.02"]
[WhiteClock "0:00:13"]
[BlackClock "0:00:08"]

1. c4 {[%clk 0:02:54]}  Nf6 {[%clk 0:03:00]} 2. Nc3 {[%clk 0:02:54]}  g6 {[%clk 0:03:00]} 3. d4 {[%clk 0:02:54]}  d6 {[%clk 0:03:00]} 4. e4 {[%clk 0:02:54]}  Bg7 {[%clk 0:03:00]} 5. Be2 {[%clk 0:02:54]}  e5 {[%clk 0:03:00]} 6. dxe5 {[%clk 0:02:54]}  dxe5 {[%clk 0:02:59]} 7. Qxd8+ {[%clk 0:02:55]}  Kxd8 {[%clk 0:03:00]} 8. f4 {[%clk 0:02:55]}  Nc6 {[%clk 0:02:54]} 9. Nf3 {[%clk 0:02:56]}  exf4 {[%clk 0:02:49]} 10. Bxf4 {[%clk 0:02:54]}  Be6 {[%clk 0:02:50]} 11. O-O {[%clk 0:02:25]}  Kc8 {[%clk 0:02:43]} 12. Nd5 {[%clk 0:02:19]}  Ne8 {[%clk 0:02:43]} 13. e5 {[%clk 0:02:16]}  h6 {[%clk 0:02:42]} 14. Bg3 {[%clk 0:02:13]}  g5 {[%clk 0:02:38]} 15. h3 {[%clk 0:02:13]}  a5 {[%clk 0:02:33]} 16. a4 {[%clk 0:02:04]}  Bf8 {[%clk 0:01:16]} 17. Bf2 {[%clk 0:01:51]}  Rg8 {[%clk 0:01:08]} 18. Bd3 {[%clk 0:01:48]}  g4 {[%clk 0:01:03]} 19. hxg4 {[%clk 0:01:43]}  Rxg4 {[%clk 0:01:03]} 20. Rae1 {[%clk 0:01:33]}  Nb4 {[%clk 0:00:56]} 21. Be4 {[%clk 0:01:30]}  Rxe4 {[%clk 0:00:50]} 22. Rxe4 {[%clk 0:01:30]}  Nxd5 {[%clk 0:00:51]} 23. cxd5 {[%clk 0:01:29]}  Bxd5 {[%clk 0:00:52]} 24. Rg4 {[%clk 0:01:29]}  Ng7 {[%clk 0:00:42]} 25. Nd4 {[%clk 0:01:23]}  Ra6 {[%clk 0:00:36]} 26. Bh4 {[%clk 0:01:20]}  Bc5 {[%clk 0:00:33]} 27. Kh2 {[%clk 0:01:06]}  Rg6 {[%clk 0:00:32]} 28. Rxg6 {[%clk 0:00:56]}  fxg6 {[%clk 0:00:33]} 29. Ne2 {[%clk 0:00:54]}  Nf5 {[%clk 0:00:31]} 30. Bf2 {[%clk 0:00:39]}  Be7 {[%clk 0:00:20]} 31. g4 {[%clk 0:00:38]}  Nh4 {[%clk 0:00:15]} 32. Bxh4 {[%clk 0:00:35]}  Bxh4 {[%clk 0:00:16]} 33. Rf8+ {[%clk 0:00:35]}  Kd7 {[%clk 0:00:16]} 34. Nf4 {[%clk 0:00:36]}  Be4 {[%clk 0:00:16]} 35. Rf7+ {[%clk 0:00:34]}  Kc6 {[%clk 0:00:16]} 36. e6 {[%clk 0:00:34]}  Bg5 {[%clk 0:00:15]} 37. Kg3 {[%clk 0:00:29]}  h5 {[%clk 0:00:15]} 38. gxh5 {[%clk 0:00:27]}  gxh5 {[%clk 0:00:15]} 39. Nxh5 {[%clk 0:00:24]}  Kd6 {[%clk 0:00:16]} 40. Ng7 {[%clk 0:00:22]}  Bc6 {[%clk 0:00:16]} 41. Kg4 {[%clk 0:00:15]}  Bc1 {[%clk 0:00:15]} 42. e7 {[%clk 0:00:14]}  Bxb2 {[%clk 0:00:08]} 43. e8=Q {[%clk 0:00:13]} 1-0


[Site "https://www.chess.com"]

[Event "Titled Tuesday Blitz August 02 Late 2022"]
[White "Sjugirov, Sanan"]
[Black "Ghaem Maghami, Ehsan"]
[WhiteFideId "4189302"]
[BlackFideId "12500739"]
[WhiteElo "2609"]
[BlackElo "2627"]
[Result "1-0"]
[Round "08"]
[TimeControl "180+1"]
[Date "2022.08.02"]
[WhiteClock "0:00:39"]
[BlackClock "0:00:09"]

1. e4 {[%clk 0:03:00]}  c6 {[%clk 0:02:59]} 2. d4 {[%clk 0:03:00]}  d5 {[%clk 0:02:59]} 3. e5 {[%clk 0:02:58]}  Bf5 {[%clk 0:02:59]} 4. Nf3 {[%clk 0:02:59]}  e6 {[%clk 0:02:59]} 5. Be2 {[%clk 0:02:59]}  Nd7 {[%clk 0:02:59]} 6. O-O {[%clk 0:02:59]}  Rc8 {[%clk 0:02:59]} 7. Nbd2 {[%clk 0:02:55]}  Ne7 {[%clk 0:02:58]} 8. a4 {[%clk 0:02:53]}  c5 {[%clk 0:02:56]} 9. c4 {[%clk 0:02:53]}  a6 {[%clk 0:02:49]} 10. a5 {[%clk 0:02:45]}  Nc6 {[%clk 0:02:45]} 11. cxd5 {[%clk 0:02:40]}  exd5 {[%clk 0:02:46]} 12. dxc5 {[%clk 0:02:38]}  Nxc5 {[%clk 0:02:43]} 13. Nb3 {[%clk 0:02:37]}  Ne6 {[%clk 0:02:34]} 14. Nfd4 {[%clk 0:02:32]}  Ncxd4 {[%clk 0:02:24]} 15. Nxd4 {[%clk 0:02:33]}  Nxd4 {[%clk 0:02:24]} 16. Qxd4 {[%clk 0:02:33]}  Bc5 {[%clk 0:02:24]} 17. Qf4 {[%clk 0:02:29]}  Qd7 {[%clk 0:02:15]} 18. Qg3 {[%clk 0:02:17]}  Kf8 {[%clk 0:01:40]} 19. Rd1 {[%clk 0:02:08]}  h6 {[%clk 0:01:38]} 20. Be3 {[%clk 0:02:04]}  Be6 {[%clk 0:01:28]} 21. Bxc5+ {[%clk 0:02:03]}  Rxc5 {[%clk 0:01:28]} 22. Rac1 {[%clk 0:01:35]}  Rc7 {[%clk 0:00:39]} 23. Qe3 {[%clk 0:01:16]}  Kg8 {[%clk 0:00:37]} 24. Bd3 {[%clk 0:01:12]}  g6 {[%clk 0:00:36]} 25. Qf4 {[%clk 0:01:06]}  Kh7 {[%clk 0:00:30]} 26. h4 {[%clk 0:01:05]}  h5 {[%clk 0:00:22]} 27. Qg5 {[%clk 0:01:03]}  Kg7 {[%clk 0:00:19]} 28. Qf6+ {[%clk 0:01:02]}  Kh7 {[%clk 0:00:19]} 29. Rxc7 {[%clk 0:01:00]}  Qxc7 {[%clk 0:00:20]} 30. Bxg6+ {[%clk 0:01:00]}  fxg6 {[%clk 0:00:19]} 31. Qxe6 {[%clk 0:01:00]}  Rd8 {[%clk 0:00:18]} 32. Qf6 {[%clk 0:00:48]}  Rd7 {[%clk 0:00:11]} 33. e6 {[%clk 0:00:47]}  Rd6 {[%clk 0:00:11]} 34. Qe5 {[%clk 0:00:41]}  Qe7 {[%clk 0:00:10]} 35. Re1 {[%clk 0:00:40]}  d4 {[%clk 0:00:10]} 36. Qxd6 {[%clk 0:00:39]}  Qxd6 {[%clk 0:00:09]} 37. e7 {[%clk 0:00:39]} 1-0


[Site "https://www.chess.com"]